fUSD/lending_fUSD_20250407
["ID","MTS","AMOUNT","RATE_DAILY","PERIOD"]
[357323107,1744006313186,-162.65,0.00775,120]
[357323108,1744006313196,-152.0,0.00776095,11]
[357323109,1744006313207,-2891.08,0.0078,120]
[357323110,1744006313216,-5000.0,0.0078,120]
[357323111,1744006313226,-150.0,0.00780801,120]
[357323112,1744006313235,-150.0,0.00784596,120]
[357323113,1744006313245,-675.12231661,0.007848,120]
[357323114,1744006313255,-2593.79111588,0.0079,120]
[357323115,1744006313264,-2000.0,0.0079,120]
[357323116,1744006313274,-151.0,0.0079,120]
[357323117,1744006313283,-2495.29659498,0.008,90]
[357323118,1744006437904,167.0,0.00041,14]
[357323119,1744006438245,168.0,0.00043151,90]
[357323121,1744006533792,-250.0,0.00051,52]
[357323122,1744006536179,-4579.97,0.00059,120]
[357323123,1744006565814,500.0,0.0006,120]
[357323124,1744006650344,500.0,0.0006,120]
[357323125,1744006662573,274.07,0.00026849,2]
[357323126,1744006662786,274.07,0.00032646,2]
[357323127,1744006662991,274.07,0.00038443,2]
[357323128,1744006663201,274.07,0.00044239,2]
[357323129,1744006663646,274.07,0.00050036,2]
[357323130,1744006664062,274.07,0.00055833,120]
[357323131,1744006693516,151.0,0.00045,120]
[357323132,1744006720120,151.0,0.00045,120]
[357323133,1744006780445,250.0,0.00019,2]
[357323134,1744006781538,300.0,0.00021,2]
[357323135,1744006782616,350.0,0.00023,2]
[357323136,1744006783696,400.0,0.00025,2]
[357323137,1744006803213,250.0,0.00051,52]
[357323138,1744006803281,250.0,0.00052,53]
[357323139,1744006804677,3663.98,0.00059,120]
[357323140,1744006814508,151.0,0.00045,120]
[357323141,1744006834937,517.55865145,0.00057987,5]
[357323142,1744006836015,500.0,0.0005,120]
[357323143,1744006843246,151.0,0.00045,120]
[357323144,1744006843291,210.82,0.00054307,5]
[357323145,1744006848391,463.6310258,0.000488,120]
[357323146,1744006931203,-151.0,0.00060164,120]
[357323147,1744006931257,-154.83,0.00061489,120]
[357323148,1744006931312,-274.07,0.00061629,120]
[357323149,1744006931369,-900.0,0.00061999,60]
[357323150,1744006931424,-10000.0,0.00062,120]
[357323151,1744006931479,-1260.0,0.00064617,60]
[357323152,1744006931538,-500.0,0.00065514,120]
[357323153,1744006931595,-173.0,0.00067345,60]
[357323154,1744006931657,-274.07,0.00067426,120]
[357323155,1744006931712,-1012.7649,0.000699,120]
[357323156,1744006931770,-1322.79077856,0.00069999,120]
[357323157,1744006931829,-259.015,0.00069999,120]
[357323158,1744006931888,-65000.0,0.0007,30]
[357323159,1744006931943,-2000.0,0.0007,120]
[357323160,1744006931998,-299.99,0.0007,120]
[357323161,1744006932053,-274.07,0.00073223,120]
[357323162,1744006932110,-151.0,0.00075342,120]
[357323163,1744006932164,-4579.97,0.00079,120]
[357323164,1744006932219,-274.07,0.00079019,120]
[357323165,1744006932275,-259.016,0.00079999,120]
[357323166,1744006933887,151.0,0.00045,120]
[357323167,1744006934436,151.0,0.0008,120]
[357323168,1744006935493,500.0,0.00065711,120]
[357323169,1744006936555,500.0,0.00062574,120]
[357323170,1744006936733,500.0,0.00067074,120]
[357323171,1744006936913,500.0,0.00066964,120]
[357323172,1744006947802,500.0,0.00063783,120]
[357323173,1744006967640,151.0,0.00045,120]
[357323174,1744006968567,151.0,0.00056986,120]
[357323175,1744006969171,151.0,0.00068959,120]
[357323176,1744006969751,151.0,0.00080932,120]
[357323177,1744006977788,3181.17,0.00078,120]
[357323178,1744007019709,642.56,0.00042,120]
[357323179,1744007019959,3749.98,0.00042,120]
[357323180,1744007020267,2933.56,0.00042,120]
[357323181,1744007021808,-797.73875261,0.00061937,28]
[357323182,1744007021831,-300.0,0.00069999,12]
[357323183,1744007021853,-250.0,0.0007689,2]
[357323184,1744007021876,-500.0,0.00083402,120]
[357323185,1744007021897,-152.26124739,0.00083691,120]
[357323186,1744007027072,248.41,0.00042,120]
[357323187,1744007027199,6380.17,0.00042,120]
[357323188,1744007027230,3380.82,0.00042,120]
[357323189,1744007103175,239.5625409,0.0005,51]
[357323190,1744007104441,239.5625409,0.0005,51]
[357323191,1744007107619,150.0,0.000519,2]
[357323192,1744007108698,17050.99524095,0.0002,2]
[357323193,1744007108728,49750.0,0.0002,2]
[357323194,1744007108761,23875.52382173,0.0002,2]
[357323195,1744007108793,50000.0,0.0002,2]
[357323196,1744007108825,49829.73,0.0002,2]
[357323197,1744007108855,50000.0,0.0002,2]
[357323198,1744007108884,50000.0,0.0002,2]
[357323199,1744007108915,560371.0,0.0002,2]
[357323200,1744007108944,50000.0,0.0002,2]
[357323201,1744007108976,50000.0,0.0002,2]
[357323202,1744007128468,25985.61498045,0.00041006,30]
[357323203,1744007135133,-83233.27562799,0.0002,2]
[357323204,1744007136102,-51219.44995219,0.0002,2]
[357323205,1744007168411,619.25500089,0.0003,120]
[357323208,1744007182678,8297.16292982,0.000209,30]
[357323209,1744007205190,-1000000.0,0.0002,2]
[357323210,1744007205902,-1000000.0,0.0002,2]
[357323211,1744007211728,-50000.0,0.0002,2]
[357323212,1744007212106,-4382.00745875,0.0002,2]
[357323213,1744007212601,-50000.0,0.0002,2]
[357323214,1744007213353,-50000.0,0.0002,2]
[357323215,1744007214020,-50000.0,0.0002,2]
[357323216,1744007214533,-50000.0,0.0002,2]
[357323217,1744007215183,-50000.0,0.0002,2]
[357323218,1744007215609,-50000.0,0.0002,2]
[357323219,1744007216073,-50000.0,0.0002,2]
[357323220,1744007216569,-50000.0,0.0002,2]
[357323221,1744007217028,-50000.0,0.0002,2]
[357323222,1744007217580,-50000.0,0.0002,2]
[357323223,1744007218008,-50000.0,0.0002,2]
[357323224,1744007218436,-50000.0,0.0002,2]
[357323225,1744007218811,-50000.0,0.0002,2]
[357323226,1744007219229,-50000.0,0.0002,2]
[357323227,1744007219656,-50000.0,0.0002,2]
[357323228,1744007220146,-50000.0,0.0002,2]
[357323229,1744007220590,-50000.0,0.0002,2]
[357323230,1744007221013,-50000.0,0.0002,2]
[357323231,1744007221478,-50000.0,0.0002,2]
[357323232,1744007221910,-50000.0,0.0002,2]
[357323233,1744007222363,-50000.0,0.0002,2]
[357323234,1744007222783,-50000.0,0.0002,2]
[357323235,1744007223247,-50000.0,0.0002,2]
[357323236,1744007223682,-50000.0,0.0002,2]
[357323237,1744007224095,-50000.0,0.0002,2]
[357323238,1744007224635,-50000.0,0.0002,2]
[357323239,1744007224877,-50000.0,0.0002,2]
[357323240,1744007225264,-50000.0,0.0002,2]
[357323241,1744007225655,-50000.0,0.0002,2]
[357323242,1744007226081,-50000.0,0.0002,2]
[357323243,1744007226134,-388459.51988426,0.0002,2]
[357323244,1744007226495,-50000.0,0.0002,2]
[357323245,1744007226914,-50000.0,0.0002,2]
[357323246,1744007227248,-50000.0,0.0002,2]
[357323247,1744007227683,-50000.0,0.0002,2]
[357323248,1744007228107,-50000.0,0.0002,2]
[357323249,1744007228605,-50000.0,0.0002,2]
[357323250,1744007230323,-50000.0,0.0002,2]
[357323251,1744007231113,-26586.06042025,0.0002,2]
[357323252,1744007232315,-50000.0,0.0002,2]
[357323253,1744007233116,-99782.01300642,0.0002,2]
[357323254,1744007235130,-50000.0,0.0002,2]
[357323255,1744007240141,-7068.5891018,0.0002,2]
[357323256,1744007242104,-241372.7260296,0.0002,2]
[357323257,1744007242127,-684.9211002,0.000229,2]
[357323258,1744007242151,-200.0,0.00023,2]
[357323259,1744007242173,-5000.00337157,0.00024,5]
[357323260,1744007242196,-372.42861849,0.000253,10]
[357323261,1744007242220,-164.4006979,0.000372,103]
[357323262,1744007242244,-1564.5912786,0.0003965,7]
[357323263,1744007242267,-212.92138336,0.00039726,15]
[357323264,1744007242290,-1209.00484166,0.00040006,12]
[357323265,1744007242312,-204.06745482,0.00042,60]
[357323266,1744007242334,-318.83265021,0.00045,120]
[357323267,1744007242365,-791.44345668,0.00049315,120]
[357323268,1744007242403,-791.44345668,0.00049315,120]
[357323269,1744007242432,-791.44345668,0.00049315,120]
[357323270,1744007242459,-791.44345668,0.00049315,120]
[357323271,1744007242485,-791.44345668,0.00049315,120]
[357323272,1744007242511,-791.44345668,0.00049315,120]
[357323273,1744007242539,-791.44345668,0.00049315,120]
[357323274,1744007242565,-791.44345668,0.00049315,120]
[357323275,1744007242590,-791.44345668,0.00049315,120]
[357323276,1744007242624,-791.44345668,0.00049315,120]
[357323277,1744007242656,-791.44345668,0.00049315,120]
[357323278,1744007242685,-791.44345668,0.00049315,120]
[357323279,1744007242714,-791.44345668,0.00049315,120]
[357323280,1744007242745,-791.44345668,0.00049315,120]
[357323281,1744007242773,-791.44345668,0.00049315,120]
[357323282,1744007242799,-791.44345668,0.00049315,120]
[357323283,1744007242827,-791.44345668,0.00049315,120]
[357323284,1744007242861,-791.44345668,0.00049315,120]
[357323285,1744007242891,-791.44345668,0.00049315,120]
[357323286,1744007242919,-791.44345668,0.00049315,120]
[357323287,1744007242947,-791.44345668,0.00049315,120]
[357323288,1744007242974,-310.41502258,0.00049315,120]
[357323289,1744007243164,-481.0284341,0.00049315,120]
[357323290,1744007243191,-791.44345668,0.00049315,120]
[357323291,1744007243218,-791.44345668,0.00049315,120]
[357323292,1744007243246,-791.44345668,0.00049315,120]
[357323293,1744007243272,-791.44345668,0.00049315,120]
[357323294,1744007243298,-791.44345668,0.00049315,120]
[357323295,1744007243325,-791.44345668,0.00049315,120]
[357323296,1744007243357,-791.44345668,0.00049315,120]
[357323297,1744007243383,-791.44345668,0.00049315,120]
[357323298,1744007243410,-791.44345668,0.00049315,120]
[357323299,1744007243436,-791.44345668,0.00049315,120]
[357323300,1744007243463,-791.44345668,0.00049315,120]
[357323301,1744007243490,-791.44345668,0.00049315,120]
[357323302,1744007243521,-791.44345668,0.00049315,120]
[357323303,1744007243548,-791.44345668,0.00049315,120]
[357323304,1744007243574,-791.44345668,0.00049315,120]
[357323305,1744007243608,-791.44345668,0.00049315,120]
[357323306,1744007243637,-791.44345668,0.00049315,120]
[357323307,1744007243667,-791.44345668,0.00049315,120]
[357323308,1744007243696,-791.44345668,0.00049315,120]
[357323309,1744007243724,-791.44345668,0.00049315,120]
[357323310,1744007243752,-791.44345668,0.00049315,120]
[357323311,1744007243779,-791.44345668,0.00049315,120]
[357323312,1744007243810,-2757.5,0.00049315,2]
[357323313,1744007243833,-13326.6,0.00049315,45]
[357323314,1744007243864,-4530.64,0.00049315,30]
[357323315,1744007243890,-777.05357564,0.00049315,120]
[357323316,1744007243917,-777.05357564,0.00049315,120]
[357323317,1744007243944,-777.05357564,0.00049315,120]
[357323318,1744007243978,-714.03228861,0.00049315,120]
[357323319,1744007246121,-63.02128703,0.00049315,120]
[357323320,1744007246150,-777.05357564,0.00049315,120]
[357323321,1744007246178,-777.05357564,0.00049315,120]
[357323322,1744007246205,-777.05357564,0.00049315,120]
[357323323,1744007246231,-777.05357564,0.00049315,120]
[357323324,1744007246256,-777.05357564,0.00049315,120]
[357323325,1744007246282,-777.05357564,0.00049315,120]
[357323326,1744007246308,-777.05357564,0.00049315,120]
[357323327,1744007246334,-777.05357564,0.00049315,120]
[357323328,1744007246368,-777.05357564,0.00049315,120]
[357323329,1744007246398,-777.05357564,0.00049315,120]
[357323330,1744007246425,-777.05357564,0.00049315,120]
[357323331,1744007246450,-777.05357564,0.00049315,120]
[357323332,1744007246475,-777.05357564,0.00049315,120]
[357323333,1744007246499,-777.05357564,0.00049315,120]
[357323334,1744007246524,-777.05357564,0.00049315,120]
[357323335,1744007246548,-777.05357564,0.00049315,120]
[357323336,1744007246574,-777.05357564,0.00049315,120]
[357323337,1744007246609,-777.05357564,0.00049315,120]
[357323338,1744007246642,-777.05357564,0.00049315,120]
[357323339,1744007246670,-777.05357564,0.00049315,120]
[357323340,1744007246696,-777.05357564,0.00049315,120]
[357323341,1744007246722,-777.05357564,0.00049315,120]
[357323342,1744007246747,-777.05357564,0.00049315,120]
[357323343,1744007246772,-755.4687541,0.00049315,120]
[357323344,1744007246801,-755.4687541,0.00049315,120]
[357323345,1744007246828,-755.4687541,0.00049315,120]
[357323346,1744007246860,-755.4687541,0.00049315,120]
[357323347,1744007246888,-755.4687541,0.00049315,120]
[357323348,1744007246914,-755.4687541,0.00049315,120]
[357323349,1744007246940,-755.4687541,0.00049315,120]
[357323350,1744007246966,-755.4687541,0.00049315,120]
[357323351,1744007246991,-755.4687541,0.00049315,120]
[357323352,1744007247016,-755.4687541,0.00049315,120]
[357323353,1744007247042,-755.4687541,0.00049315,120]
[357323354,1744007247066,-755.4687541,0.00049315,120]
[357323355,1744007247091,-755.4687541,0.00049315,120]
[357323356,1744007247119,-755.4687541,0.00049315,120]
[357323357,1744007247144,-755.4687541,0.00049315,120]
[357323358,1744007247168,-755.4687541,0.00049315,120]
[357323359,1744007247192,-596.48942536,0.00049315,120]
[357323360,1744007254108,-158.97932874,0.00049315,120]
[357323361,1744007254135,-500.0,0.00049315,120]
[357323362,1744007254163,-255.46875402,0.00049315,120]
[357323363,1744007254186,-572.81751956,0.000498,30]
[357323364,1744007254210,-10024.16864571,0.000499,120]
[357323365,1744007254234,-25049.90736169,0.0005,3]
[357323366,1744007254258,-4389.40161158,0.00050673,2]
[357323368,1744007294116,313.09590003,0.00041006,30]
[357323370,1744007305743,-10080.33626365,0.00015,2]
[357323372,1744007305796,-10080.33626365,0.00015,2]
[357323374,1744007305843,-2279.15095373,0.00015,2]
[357323376,1744007320410,298.43717079,0.0003,60]
[357323377,1744007320568,650.28901528,0.00041006,30]
[357323378,1744007321586,210.90422501,0.0002736,120]
[357323380,1744007328143,791.89247532,0.00028,60]
[357323381,1744007330752,-10529.13273327,0.00015,2]
[357323383,1744007330805,-8983.21819376,0.00015,2]
[357323389,1744007355761,-10919.37975181,0.00015,2]
[357323390,1744007355821,-9660.65148724,0.00015,2]
[357323391,1744007357337,-55326.78439836,0.00015,2]
[357323392,1744007357361,-3499.91402067,0.000185,2]
[357323393,1744007357391,-44147.50637132,0.0002,4]
[357323394,1744007357418,-1215.15858252,0.0002,4]
[357323395,1744007357447,-5000.00229959,0.0002,2]
[357323409,1744007433113,-586.4693694,0.00025,7]
[357323410,1744007433124,-510.53566556,0.0003,2]
[357323411,1744007433135,-63.03857371,0.0003167,40]
[357323412,1744007433536,-92.99608606,0.0003167,40]
[357323413,1744007433547,-420.88,0.0003299,2]
[357323414,1744007433558,-420.88,0.0003299,2]
[357323415,1744007433568,-25056.26237881,0.00033,2]
[357323416,1744007433578,-34708.46169817,0.00033,2]
[357323417,1744007433591,-691.65894273,0.00033,2]
[357323418,1744007433607,-259.77875415,0.00033,2]
[357323420,1744007433632,-300.96,0.00033,2]
[357323422,1744007433650,-38049.99999998,0.00033,2]
[357323424,1744007433663,-7919.37190231,0.00033,2]
[357323427,1744007433679,-7598.76025835,0.00033,2]
[357323429,1744007433695,-846.61024287,0.00033,2]
[357323432,1744007433707,-3833.67388567,0.00033,2]
[357323434,1744007433718,-1818.0785068,0.00033,2]
[357323436,1744007433729,-3802.5988,0.00033,2]
[357323438,1744007433756,-335.58132348,0.00033,2]
[357323462,1744007438463,-471208.86216914,0.00033,2]
[357323464,1744007438474,-2517.18594714,0.000334,2]
[357323466,1744007438484,-1165.57095062,0.000335,2]
[357323468,1744007438493,-151.33,0.0003399,2]
[357323470,1744007438506,-3991.70386852,0.00034,2]
[357323472,1744007438517,-500.0,0.00034006,5]
[357323474,1744007438527,-793.08138933,0.00035,2]
[357323476,1744007438536,-226.98478768,0.00035,2]
[357323478,1744007438546,-151.33,0.0003799,2]
[357323480,1744007438556,-151.33,0.0003799,2]
[357323482,1744007438567,-289035.89768902,0.00038,2]
[357323485,1744007438590,-116224.74183092,0.00038,2]
[357323487,1744007438599,-17554.3568812,0.0003999,3]
[357323489,1744007438608,-1941.53269806,0.0004,7]
[357323491,1744007438618,-194.80770791,0.0004,30]
[357323494,1744007438627,-29085.9145392,0.0004,30]
[357323500,1744007438702,-49829.52920942,0.0004,30]
[357323502,1744007438711,-151.33,0.00040883,2]
[357323503,1744007438721,-2722.94218614,0.00040893,2]
[357323506,1744007438739,-41092.56605124,0.00040893,2]
[357323508,1744007438751,-502.12631049,0.00040893,5]
[357323510,1744007438760,-299.97421125,0.00041096,2]
[357323512,1744007438770,-1550.37,0.00043523,2]
[357323514,1744007438779,-205.22690017,0.0004438,7]
[357323516,1744007438788,-82884.13659974,0.0004439,120]
[357323518,1744007438798,-959.43,0.00045,120]
[357323520,1744007438807,-3540.61740763,0.00045,30]
[357323523,1744007438817,-10219.1279384,0.00045,2]
[357323526,1744007438826,-172.32,0.00046922,2]
[357323529,1744007438836,-2197.21392037,0.000475,120]
[357323532,1744007438845,-212.32368148,0.00048,120]
[357323535,1744007438858,-375.6604854,0.000486,120]
[357323538,1744007438867,-207.0,0.00049,120]
[357323541,1744007438877,-500.0,0.00049315,120]
[357323544,1744007438886,-500.0,0.00049315,120]
[357323546,1744007438896,-500.0,0.00049315,120]
[357323549,1744007438905,-500.0,0.00049315,120]
[357323552,1744007438915,-500.0,0.00049315,120]
[357323554,1744007438924,-500.0,0.00049315,120]
[357323556,1744007438933,-500.0,0.00049315,120]
[357323558,1744007438943,-500.0,0.00049315,120]
[357323560,1744007438952,-500.0,0.00049315,120]
[357323562,1744007438961,-500.0,0.00049315,120]
[357323564,1744007438970,-500.0,0.00049315,120]
[357323566,1744007438979,-500.0,0.00049315,120]
[357323568,1744007438989,-500.0,0.00049315,120]
[357323570,1744007439000,-267.75451188,0.00049315,120]
[357323571,1744007439009,-500.0,0.00049315,120]
[357323573,1744007439018,-500.0,0.00049315,120]
[357323575,1744007439028,-500.0,0.00049315,120]
[357323578,1744007439038,-500.0,0.00049315,120]
[357323579,1744007439047,-420.79092891,0.0005,2]
[357323581,1744007439057,-765.12614871,0.0005,7]
[357323584,1744007439067,-470.70336931,0.0005,120]
[357323586,1744007439077,-239.5625409,0.0005,51]
[357323588,1744007439086,-269.0,0.0005,13]
[357323590,1744007439096,-364.74413002,0.00050073,10]
[357323592,1744007439106,-151.33,0.0005009,120]
[357323594,1744007439115,-151.33,0.0005009,120]
[357323596,1744007439124,-291124.50796497,0.000501,7]
[357323598,1744007439134,-2165.49949649,0.00050673,2]
[357323600,1744007439143,-150.0,0.000519,2]
[357323602,1744007439152,-16686.79375938,0.0005199,2]
[357323604,1744007439162,-575.33773129,0.00053,2]
[357323606,1744007439171,-445.97913895,0.0005331,2]
[357323608,1744007439180,-2156.67962689,0.00054,120]
[357323610,1744007439190,-5270.3,0.00055,120]
[357323612,1744007439200,-3482.42089619,0.00056888,120]
[357323614,1744007439209,-625.78007288,0.00057,7]
[357323616,1744007439219,-17554.3568812,0.0005799,4]
[357323618,1744007439228,-19445.7594309,0.0005799,4]
[357323620,1744007439237,-151.33,0.0005799,120]
[357323622,1744007439246,-27893.14182843,0.00058,2]
[357323624,1744007439260,-1200.99496043,0.00058,120]
[357323626,1744007439270,-219.69,0.00058,30]
[357323628,1744007439279,-571.38362956,0.0005909,2]
[357323630,1744007439289,-1136.5661967,0.0006,30]
[357323632,1744007439298,-150.0,0.0006,30]
[357323633,1744007439307,-357.0,0.0006,120]
[357323635,1744007439316,-300.0,0.0006,2]
[357323637,1744007439326,-344.407079,0.000608,42]
[357323639,1744007439335,-217.99,0.000609,7]
[357323641,1744007439344,-2324.06203538,0.000649,120]
[357323643,1744007439354,-968.31789415,0.000649,120]
[357323645,1744007439363,-282.2673613,0.00066,120]
[357323647,1744007439372,-290.07747421,0.00066,30]
[357323649,1744007439382,-500.0,0.00067917,120]
[357323651,1744007439391,-474.81290428,0.00069,120]
[357323653,1744007439400,-319.02969517,0.000699,120]
[357323655,1744007439410,-670.38,0.0007,120]
[357323658,1744007439420,-1000.0,0.0007,120]
[357323660,1744007439430,-1000.0,0.0007,120]
[357323662,1744007439439,-1000.0,0.0007,120]
[357323664,1744007439449,-150.71314891,0.0007,30]
[357323666,1744007439458,-29999.999999,0.0007,30]
[357323667,1744007439467,-281.90127603,0.0007,120]
[357323669,1744007439476,-781.94099281,0.0007,120]
[357323672,1744007439486,-25000.0,0.0007,120]
[357323673,1744007439495,-2000.0,0.0007,120]
[357323675,1744007439508,-239.63080171,0.00072,30]
[357323678,1744007439518,-280.39636888,0.000735,120]
[357323679,1744007439527,-500.0,0.00073894,120]
[357323681,1744007439536,-500.0,0.00074894,120]
[357323684,1744007439546,-526.86557176,0.000768,120]
[357323685,1744007439555,-691.43274376,0.000788,120]
[357323688,1744007439564,-200.0,0.0008,8]
[357323689,1744007439574,-3000.0,0.0008,120]
[357323692,1744007439583,-330.95325061,0.000801,30]
[357323694,1744007439593,-190.0,0.00083691,120]
[357323696,1744007439602,-274.07,0.00084816,120]
[357323698,1744007439612,-3238.754496,0.00087,120]
[357323699,1744007439621,-500.0,0.00087333,60]
[357323701,1744007439631,-17554.3568812,0.0008799,7]
[357323703,1744007439641,-19445.7594309,0.0008799,7]
[357323705,1744007439655,-40302.14248698,0.00088,120]
[357323707,1744007439664,-166.39801092,0.00089,120]
[357323709,1744007439673,-372.01778597,0.00089,120]
[357323711,1744007439682,-151.33,0.0008998,120]
[357323713,1744007439693,-17554.3568812,0.0008999,7]
[357323715,1744007439703,-9722.87971547,0.0008999,7]
[357323717,1744007439712,-259.016,0.0009,120]
[357323719,1744007439723,-301.53,0.0009,2]
[357323721,1744007439732,-5016.57149616,0.0009,120]
[357323723,1744007439741,-494.89682154,0.0009,120]
[357323725,1744007439753,-25000.0,0.0009,120]
[357323727,1744007439763,-274.07,0.00090613,120]
[357323729,1744007439772,-781.06665943,0.000919,120]
[357323731,1744007439781,-35108.7137624,0.0009199,7]
[357323733,1744007439791,-38891.5188619,0.0009199,7]
[357323735,1744007439800,-151.33,0.0009199,120]
[357323737,1744007439809,-76632.86378089,0.00092,120]
[357323739,1744007439818,-3426.50634337,0.00092,120]
[357323741,1744007439828,-500.0,0.0009247,120]
[357323743,1744007439837,-151.0,0.00092904,120]
[357323745,1744007439846,-301.9423445,0.00094,120]
[357323747,1744007439856,-266.46112082,0.0009429,7]
[357323749,1744007439866,-6993.5049473,0.00095,120]
[357323751,1744007439875,-274.07,0.0009641,120]
[357323753,1744007439884,-245.55296083,0.000967,120]
[357323755,1744007439894,-1500.0,0.00096908,120]
[357323757,1744007439905,-151.33,0.0009698,120]
[357323759,1744007439919,-151.33,0.0009698,120]
[357323761,1744007439929,-14782.16850166,0.00096988,120]
[357323763,1744007439939,-175543.568812,0.0009699,8]
[357323765,1744007439948,-184734.714594,0.0009699,8]
[357323767,1744007439958,-151.33,0.0009699,120]
[357323769,1744007439967,-151.33,0.0009699,120]
[357323771,1744007439977,-365842.07734271,0.00097,120]
[357323773,1744007439986,-500.0,0.00097641,120]
[357323775,1744007439995,-151.33,0.0009787,120]
[357323777,1744007440011,-122880.498168,0.0009788,8]
[357323779,1744007440020,-38891.5188619,0.0009788,8]
[357323780,1744007440030,-151.33,0.0009788,120]
[357323783,1744007440041,-249991.21342553,0.0009789,120]
[357323785,1744007440051,-1119.0,0.00098,120]
[357323786,1744007440061,-1000.0,0.00099,120]
[357323788,1744007440071,-151.33,0.0009999,120]
[357323790,1744007440082,-259.015,0.001,120]
[357323792,1744007440092,-623.8854648,0.001,120]
[357323794,1744007440102,-50000.0,0.001,120]
[357323797,1744007440111,-1060.96637052,0.001,120]
[357323798,1744007440123,-1350.0,0.001,10]
[357323800,1744007440132,-3140.66238982,0.001,120]
[357323802,1744007440142,-534.459,0.00101167,2]
[357323804,1744007440151,-250.0,0.00101239,120]
[357323806,1744007440161,-5714.95,0.00101267,30]
[357323809,1744007440171,-274.07,0.00102206,120]
[357323811,1744007440180,-258.48,0.00102453,2]
[357323813,1744007440189,-23900.0,0.00102935,30]
[357323815,1744007440198,-200.0,0.00102935,30]
[357323817,1744007440207,-185.51,0.00102935,120]
[357323819,1744007440216,-258.48,0.00104717,2]
[357323822,1744007440228,-250.0,0.00104813,2]
[357323824,1744007440238,-151.0,0.00104877,120]
[357323825,1744007440249,-1720.66,0.00106211,120]
[357323828,1744007440261,-200.0,0.0010646,120]
[357323830,1744007440271,-500.0,0.00106511,120]
[357323832,1744007440280,-258.48,0.00106981,2]
[357323834,1744007440290,-500.0,0.00107756,120]
[357323835,1744007440299,-274.07,0.00108003,120]
[357323837,1744007440308,-954.69619677,0.00108802,120]
[357323839,1744007440317,-258.48,0.00109244,2]
[357323841,1744007440326,-259.016,0.0011,120]
[357323843,1744007440336,-258.48,0.00111508,2]
[357323845,1744007440345,-258.48,0.00113772,2]
[357323847,1744007440354,-274.07,0.001138,120]
[357323849,1744007440364,-1000.0,0.00114731,60]
[357323851,1744007440373,-151.0,0.00114986,120]
[357323854,1744007440383,-258.48,0.00116036,2]
[357323856,1744007440392,-151.0,0.00116849,120]
[357323858,1744007440401,-1000.0,0.00117605,120]
[357323860,1744007440411,-151.5,0.00117814,120]
[357323863,1744007440420,-258.48,0.001183,2]
[357323866,1744007440430,-500.0,0.00119096,120]
[357323869,1744007440439,-274.07,0.00119596,120]
[357323872,1744007440449,-25000.0,0.0012,120]
[357323875,1744007440458,-185.51,0.00120091,120]
[357323878,1744007440468,-258.48,0.00120564,2]
[357323881,1744007440477,-3733.06,0.00120936,120]
[357323883,1744007440486,-258.48,0.00122828,2]
[357323885,1744007440496,-500.0,0.00124071,120]
[357323887,1744007440508,-258.48,0.00125092,2]
[357323889,1744007440518,-274.07,0.00125393,120]
[357323891,1744007440527,-500.0,0.0012656,120]
[357323893,1744007440537,-258.48,0.00127356,2]
[357323895,1744007440546,-151.0,0.00128822,120]
[357323899,1744007440556,-151.5,0.00129047,120]